bitfinex/quotes_BTCUSD_20240729
["timestamp","ask_amount","ask_price","bid_price","bid_amount"]
[1722239453183,0.00284,69680.0,69679.0,1.031108]
[1722239453380,0.02536689,69680.0,69679.0,1.031108]
[1722239453798,0.02536689,69680.0,69679.0,1.020108]
[1722239453999,0.02436689,69680.0,69679.0,1.020108]
[1722239455095,0.02436689,69680.0,69679.0,0.936808]
[1722239455247,0.02436689,69680.0,69679.0,1.020108]
[1722239455628,0.00184,69680.0,69679.0,1.020108]
[1722239455830,0.00284,69680.0,69679.0,1.034108]
[1722239456107,0.00284,69680.0,69679.0,1.026108]
[1722239456108,0.00184,69680.0,69679.0,1.026108]
[1722239456383,0.00284,69680.0,69679.0,1.040108]
[1722239456587,0.00284,69680.0,69679.0,1.026108]
[1722239456942,0.00284,69680.0,69679.0,1.040108]
[1722239458847,0.02536665,69680.0,69679.0,1.040108]
[1722239460603,0.12852853,69680.0,69679.0,0.206236]
[1722239460811,0.12852853,69680.0,69679.0,0.028224]
[1722239461009,0.12853085,69680.0,69679.0,0.37266]
[1722239461234,0.17141806,69680.0,69679.0,0.143036]
[1722239461411,0.29431462,69680.0,69679.0,0.028224]
[1722239461643,0.24421468,69680.0,69679.0,0.028224]
[1722239462041,0.22277784,69680.0,69679.0,0.028224]
[1722239462242,0.17988386,69680.0,69679.0,0.028224]
[1722239462443,0.17988386,69680.0,69679.0,0.143036]
[1722239462857,0.15635721,69680.0,69679.0,0.129036]
[1722239463233,0.20025988,69680.0,69679.0,0.143036]
[1722239463661,0.09629115,69680.0,69679.0,0.37266]
[1722239463969,0.10732024,69680.0,69679.0,0.37266]
[1722239464179,0.20023166,69680.0,69679.0,0.37266]
[1722239464325,0.15023166,69680.0,69679.0,0.143036]
[1722239464524,0.20023166,69680.0,69679.0,0.143036]
[1722239464734,0.20023166,69680.0,69679.0,0.37266]
[1722239465125,0.20023166,69680.0,69679.0,0.143036]
[1722239465401,0.17168738,69680.0,69679.0,0.143036]
[1722239465578,0.22168738,69680.0,69679.0,0.028224]
[1722239465796,0.23242024,69680.0,69679.0,0.028224]
[1722239466125,0.3407713,69680.0,69679.0,0.028224]
[1722239466333,0.4018713,69680.0,69679.0,0.028224]
[1722239466528,0.43085845,69680.0,69679.0,0.028224]
[1722239466769,0.66047945,69680.0,69679.0,0.028224]
[1722239467018,0.53831223,69680.0,69679.0,0.028224]
[1722239467543,0.76793323,69680.0,69679.0,0.028224]
[1722239467727,0.76693323,69680.0,69679.0,0.014224]
[1722239468131,0.65958611,69680.0,69679.0,0.028224]
[1722239468533,0.65958611,69680.0,69679.0,0.014224]
[1722239468932,0.65958611,69680.0,69679.0,0.028224]
[1722239470138,0.65952396,69680.0,69679.0,0.028224]
[1722239470344,0.58699575,69680.0,69679.0,0.028224]
[1722239470661,0.35420301,69680.0,69679.0,0.028224]
[1722239470866,0.40738843,69680.0,69679.0,0.028224]
[1722239471070,0.63700943,69680.0,69679.0,0.028224]
[1722239473096,0.63693755,69680.0,69679.0,0.028224]
[1722239473466,0.58382401,69680.0,69679.0,0.028224]
[1722239473672,0.63687527,69680.0,69679.0,0.028224]
[1722239475127,0.65940361,69680.0,69679.0,0.028224]
[1722239475336,0.63687527,69680.0,69679.0,0.028224]
[1722239475537,0.40725427,69680.0,69679.0,0.028224]
[1722239475986,0.29244427,69680.0,69679.0,0.028224]
[1722239476477,0.40725427,69680.0,69679.0,0.028224]
[1722239477106,0.35725427,69680.0,69679.0,0.028224]
[1722239478252,0.37978253,69680.0,69679.0,0.028224]
[1722239478452,0.42978253,69680.0,69679.0,0.028224]
[1722239478654,0.40725427,69680.0,69679.0,0.028224]
[1722239479762,0.29244427,69680.0,69679.0,0.028224]
[1722239479938,0.29265583,69680.0,69679.0,0.028224]
[1722239480137,0.40746583,69680.0,69679.0,0.028224]
[1722239480464,0.35420301,69680.0,69679.0,0.028224]
[1722239480660,0.40743756,69680.0,69679.0,0.028224]
[1722239481412,0.35743756,69680.0,69679.0,0.028224]
[1722239481832,0.37996547,69680.0,69679.0,0.028224]
[1722239482038,0.42996547,69680.0,69679.0,0.028224]
[1722239483092,0.37673092,69680.0,69679.0,0.028224]
[1722239483291,0.42997196,69680.0,69679.0,0.028224]
[1722239487049,0.65959296,69680.0,69679.0,0.028224]
[1722239487281,0.65968622,69680.0,69679.0,0.028224]
[1722239488120,0.42906522,69680.0,69679.0,0.014224]
[1722239488337,0.43006522,69680.0,69679.0,0.024224]
[1722239488543,0.43006522,69680.0,69679.0,0.010224]
[1722239488992,0.43006522,69680.0,69679.0,0.023224]
[1722239489259,0.42906522,69680.0,69679.0,0.013224]
[1722239489543,0.42906522,69680.0,69679.0,0.000224]
[1722239489805,0.37573092,69680.0,69679.0,0.000224]
[1722239490081,0.37573092,69680.0,69679.0,0.009224]
[1722239490082,0.42905519,69680.0,69679.0,0.009224]
[1722239490307,0.40652804,69680.0,69679.0,0.009224]
[1722239491046,0.40735651,69680.0,69679.0,0.009224]
[1722239491274,0.40752804,69680.0,69679.0,0.015224]
[1722239491737,0.40848269,69680.0,69679.0,0.015224]
[1722239491987,0.35752804,69680.0,69679.0,0.015224]
[1722239492223,0.3585334,69680.0,69679.0,0.015224]
[1722239492707,0.40850352,69680.0,69679.0,0.015224]
[1722239492958,0.40749816,69680.0,69679.0,0.015224]
[1722239493163,0.57835549,69680.0,69679.0,0.015224]
[1722239493331,0.51545629,69680.0,69679.0,0.015224]
[1722239494129,0.74507729,69680.0,69679.0,0.015224]
[1722239494364,0.51545629,69680.0,69679.0,0.015224]
[1722239494586,0.40064629,69680.0,69679.0,0.015224]
[1722239494819,0.31521884,69680.0,69679.0,0.015224]
[1722239495052,0.51545313,69680.0,69679.0,0.015224]
[1722239495509,0.51545394,69680.0,69679.0,0.015224]
[1722239496475,0.5153824,69680.0,69679.0,0.015224]
[1722239498047,0.4653824,69680.0,69679.0,0.015224]
[1722239498253,0.46656548,69680.0,69679.0,0.015224]
[1722239498472,0.4653824,69680.0,69679.0,0.015224]
[1722239498755,0.46553611,69680.0,69679.0,0.015224]
[1722239498955,0.4665998,69680.0,69679.0,0.015224]
[1722239499154,0.40072611,69680.0,69679.0,0.015224]
[1722239499330,0.26525726,69680.0,69679.0,0.015224]
[1722239499533,0.21192137,69680.0,69679.0,0.015224]
[1722239499740,0.25743265,69680.0,69679.0,0.015224]
[1722239501104,0.30743265,69680.0,69679.0,0.015224]
[1722239501462,0.37317143,69680.0,69679.0,0.015224]
[1722239501620,0.25743265,69680.0,69679.0,0.015224]
[1722239501965,0.23490429,69680.0,69679.0,0.015224]
[1722239502193,0.18159871,69680.0,69679.0,0.015224]
[1722239502405,0.23001182,69680.0,69679.0,0.015224]
[1722239502598,0.23102701,69680.0,69679.0,0.015224]
[1722239502805,0.23159871,69680.0,69679.0,0.015224]
[1722239503060,0.23008081,69680.0,69679.0,0.015224]
[1722239503248,0.23117519,69680.0,69679.0,0.015224]
[1722239503501,0.23008081,69680.0,69679.0,0.015224]
[1722239503694,0.23126529,69680.0,69679.0,0.015224]
[1722239503921,0.23008081,69680.0,69679.0,0.015224]
[1722239504125,0.2311633,69680.0,69679.0,0.015224]
[1722239504342,0.35934516,69680.0,69679.0,0.130036]
[1722239505089,0.25260908,69680.0,69679.0,0.130036]
[1722239505507,0.19930338,69680.0,69679.0,0.130036]
[1722239506000,0.06465522,69680.0,69679.0,0.35966]
[1722239506177,0.06465522,69680.0,69679.0,0.589284]
[1722239506178,0.07086854,69680.0,69679.0,0.589284]
[1722239506416,0.07086854,69680.0,69679.0,0.943708]
[1722239506417,0.13452355,69680.0,69679.0,0.943708]
[1722239507158,0.00184,69680.0,69679.0,0.943708]
[1722239507963,0.00184,69680.0,69679.0,0.934708]
[1722239508154,0.06644862,69680.0,69679.0,0.934708]
[1722239508356,0.06644862,69680.0,69679.0,0.943708]
[1722239508777,0.06644862,69680.0,69679.0,0.934708]
[1722239509210,0.00184,69680.0,69679.0,0.948708]
[1722239509432,0.06643991,69680.0,69679.0,0.948708]
[1722239510225,0.00184,69680.0,69679.0,0.948708]
[1722239510404,0.02436651,69680.0,69679.0,0.948708]
[1722239510623,0.04490217,69680.0,69679.0,0.948708]
[1722239511227,0.00184,69680.0,69679.0,0.948708]
[1722239511633,0.00184,69680.0,69679.0,0.942708]
[1722239511634,0.00084,69680.0,69679.0,0.942708]
[1722239511814,0.00084,69680.0,69679.0,1.21126594]
[1722239512013,0.00084,69680.0,69679.0,0.98164194]
[1722239512219,0.00084,69680.0,69679.0,0.942708]
[1722239512432,0.00084,69680.0,69679.0,0.98164194]
[1722239513125,0.00084,69680.0,69679.0,0.942708]
[1722239513523,0.00184,69680.0,69679.0,1.040008]
[1722239513852,0.02436596,69680.0,69679.0,1.040008]
[1722239514256,0.00184,69680.0,69679.0,1.040008]
[1722239514518,0.00184,69680.0,69679.0,0.831908]
[1722239514819,0.00184,69680.0,69679.0,0.602284]
[1722239515024,0.06639825,69680.0,69679.0,0.602284]
[1722239515358,0.00184,69680.0,69679.0,0.602284]
[1722239516612,0.06639703,69680.0,69679.0,0.602284]
[1722239516883,0.00184,69680.0,69679.0,0.37266]
[1722239517092,0.00184,69680.0,69679.0,0.602284]
[1722239517093,0.17508519,69680.0,69679.0,0.602284]
[1722239517479,0.24896489,69680.0,69679.0,0.028224]
[1722239517690,0.2704839,69680.0,69679.0,0.143036]
[1722239517893,0.16288884,69680.0,69679.0,0.143036]
[1722239518116,0.16288884,69680.0,69679.0,0.37266]
[1722239518705,0.16272852,69680.0,69679.0,0.37266]
[1722239519105,0.1257197,69680.0,69679.0,0.37266]
[1722239519449,0.11256845,69680.0,69679.0,0.37266]
[1722239519654,0.27014446,69680.0,69679.0,0.37266]
[1722239519856,0.27014507,69680.0,69679.0,0.37266]
[1722239520373,0.27014507,69680.0,69679.0,0.028224]
[1722239520374,0.41494507,69680.0,69679.0,0.028224]
[1722239520576,0.30736845,69680.0,69679.0,0.028224]
[1722239520785,1.18731324,69680.0,69679.0,0.028224]
[1722239520982,1.33253996,69680.0,69679.0,0.028224]
[1722239521186,1.19413338,69680.0,69679.0,0.028224]
[1722239521406,1.17160669,69680.0,69679.0,0.028224]
[1722239522759,1.17060669,69680.0,69679.0,0.014224]
[1722239523159,1.17060669,69680.0,69679.0,0.015224]
[1722239523529,1.40022769,69680.0,69679.0,0.015224]
[1722239523732,1.47322769,69680.0,69679.0,0.015224]
[1722239523939,1.57322769,69680.0,69679.0,0.015224]
[1722239524127,1.79013278,69680.0,69679.0,0.015224]
[1722239524289,1.79000889,69680.0,69679.0,0.015224]
[1722239524490,1.5786675,69680.0,69679.0,0.000224]
[1722239524690,1.60119914,69680.0,69679.0,0.000224]
[1722239525093,1.57970526,69680.0,69679.0,0.000224]
[1722239525294,1.5786675,69680.0,69679.0,0.000224]
[1722239525495,1.57976396,69680.0,69679.0,0.000224]
[1722239525694,1.67976396,69680.0,69679.0,0.000224]
[1722239525895,1.6786675,69680.0,69679.0,0.001224]
[1722239526064,1.6876675,69680.0,69679.0,0.001224]
[1722239526413,1.6786675,69680.0,69679.0,0.012224]
[1722239526592,1.6892217,69680.0,69679.0,0.013224]
[1722239526809,1.5892217,69680.0,69679.0,0.013224]
[1722239526977,1.6209675,69680.0,69679.0,0.001224]
[1722239527183,1.62102118,69680.0,69679.0,0.002224]
[1722239528334,1.64355404,69680.0,69679.0,0.002224]
[1722239528679,1.69355404,69680.0,69679.0,0.002224]
[1722239528880,1.59354063,69680.0,69679.0,0.002224]
[1722239529394,1.74354063,69680.0,69679.0,0.002224]
[1722239530315,1.69330689,69680.0,69679.0,0.002224]
[1722239530779,1.66911987,69680.0,69679.0,0.002224]
[1722239530934,1.69348216,69680.0,69679.0,0.002224]
[1722239531132,1.81848216,69680.0,69679.0,0.002224]
[1722239531356,1.91848216,69680.0,69679.0,0.002224]
[1722239532710,1.8959493,69680.0,69679.0,0.002224]
[1722239532917,1.74590163,69680.0,69679.0,0.002224]
[1722239533120,1.63760163,69680.0,69679.0,0.002224]
[1722239533326,1.53760163,69680.0,69679.0,0.002224]
[1722239533524,1.51328701,69680.0,69679.0,0.002224]
[1722239533681,1.63759755,69680.0,69679.0,0.002224]
[1722239535094,1.53759755,69680.0,69679.0,0.002224]
[1722239535322,1.68220485,69680.0,69679.0,0.002224]
[1722239535524,1.48759755,69680.0,69679.0,0.002224]
[1722239535728,1.56013037,69680.0,69679.0,0.002224]
[1722239535928,1.51013037,69680.0,69679.0,0.002224]
[1722239536733,1.51088408,69680.0,69679.0,0.002224]
[1722239537518,0.96946007,69680.0,69679.0,0.002224]
[1722239537722,1.00552628,69680.0,69679.0,0.002224]
[1722239538448,1.05552628,69680.0,69679.0,0.002224]
[1722239539870,1.00920582,69680.0,69679.0,0.002224]
[1722239540087,1.0554819,69680.0,69679.0,0.002224]
[1722239540528,1.05548123,69680.0,69679.0,0.002224]
[1722239540675,1.14808123,69680.0,69679.0,0.002224]
[1722239540884,1.19808123,69680.0,69679.0,0.002224]
[1722239541426,1.14808123,69680.0,69679.0,0.002224]
[1722239541648,1.12554841,69680.0,69679.0,0.002224]
[1722239542514,1.12522012,69680.0,69679.0,0.002224]
[1722239542748,1.12522014,69680.0,69679.0,0.002224]
[1722239542935,1.17522014,69680.0,69679.0,0.002224]
[1722239543111,1.129273,69680.0,69679.0,0.002224]
[1722239543295,1.1752108,69680.0,69679.0,0.002224]
[1722239543900,1.1252108,69680.0,69679.0,0.002224]
[1722239544123,1.1752108,69680.0,69679.0,0.002224]
[1722239544866,1.19774314,69680.0,69679.0,0.002224]
[1722239545060,1.14774314,69680.0,69679.0,0.002224]
[1722239545369,1.1252108,69680.0,69679.0,0.002224]
[1722239546451,1.079273,69680.0,69679.0,0.002224]
[1722239546629,1.17526556,69680.0,69679.0,0.002224]
[1722239546824,0.92264456,69680.0,69679.0,0.002224]
[1722239547229,0.9868768,69680.0,69679.0,0.002224]
[1722239547430,0.876652,69680.0,69679.0,0.002224]
[1722239547631,0.92266231,69680.0,69679.0,0.002224]
[1722239548288,0.42297288,69680.0,69679.0,0.002224]
[1722239548652,0.12854188,69680.0,69679.0,0.084624]
[1722239548880,0.26365141,69680.0,69679.0,0.002224]
[1722239549098,0.51468756,69680.0,69679.0,0.002224]
[1722239549286,0.75453651,69680.0,69679.0,0.001224]
[1722239549488,1.24476801,69680.0,69679.0,0.001224]
[1722239549700,1.24531146,69680.0,69679.0,0.001224]
[1722239550048,1.21613726,69680.0,69679.0,0.001224]
[1722239550179,1.31613726,69680.0,69679.0,0.001224]
[1722239550385,1.41759959,69680.0,69679.0,0.001224]
[1722239550587,1.41613726,69680.0,69679.0,0.001224]
[1722239550788,1.32613726,69680.0,69679.0,0.001224]
[1722239550992,1.32769146,69680.0,69679.0,0.001224]
[1722239551588,1.32613726,69680.0,69679.0,0.001224]
[1722239551818,1.25459371,69680.0,69679.0,0.001224]
[1722239552191,1.20459371,69680.0,69679.0,0.001224]
[1722239552617,1.25459371,69680.0,69679.0,0.001224]
[1722239552852,1.20102925,69680.0,69679.0,0.001224]
[1722239553648,1.20102925,69680.0,69679.0,0.002224]
[1722239553855,1.20302925,69680.0,69679.0,0.002224]
[1722239554010,1.25302925,69680.0,69679.0,0.002224]
[1722239554214,1.02340825,69680.0,69679.0,0.002224]
[1722239554421,0.97340825,69680.0,69679.0,0.002224]
[1722239555243,0.34976625,69680.0,69679.0,0.064124]
[1722239555471,0.30824526,69680.0,69679.0,0.064124]
[1722239555671,0.25824526,69680.0,69679.0,0.064124]
[1722239556088,0.17316316,69680.0,69679.0,0.064124]
[1722239556292,0.25991657,69680.0,69679.0,0.064124]
[1722239556491,0.51206745,69680.0,69679.0,0.064124]
[1722239556763,0.4884836,69680.0,69679.0,0.064124]
[1722239556963,0.5384836,69680.0,69679.0,0.002224]
[1722239557286,0.81420516,69680.0,69679.0,0.001224]
[1722239557431,1.35294333,69680.0,69679.0,0.001224]
[1722239557650,1.57940095,69680.0,69679.0,0.000224]
[1722239557863,1.45094333,69680.0,69679.0,0.000224]
[1722239558071,1.45294333,69680.0,69679.0,0.000224]
[1722239558666,1.21964333,69680.0,69679.0,0.000224]
[1722239558958,0.92652233,69680.0,69679.0,0.000224]
[1722239559074,0.92724575,69680.0,69679.0,0.001224]
[1722239559519,1.12047822,69680.0,69679.0,0.001224]
[1722239559889,1.070519,69680.0,69679.0,0.001224]
[1722239560107,1.85725641,69680.0,69679.0,0.001224]
[1722239560287,1.85525641,69680.0,69679.0,0.000224]
[1722239560497,1.73097023,69680.0,69679.0,0.000224]
[1722239561072,1.73252443,69680.0,69679.0,0.000224]
[1722239561302,1.70999271,69680.0,69679.0,0.000224]
[1722239561509,1.70843851,69680.0,69679.0,0.000224]
[1722239562219,1.586544,69680.0,69679.0,0.000224]
[1722239562411,1.71643527,69680.0,69679.0,0.001224]
[1722239562920,1.70943527,69680.0,69679.0,0.000224]
[1722239563135,1.72143527,69680.0,69679.0,0.001224]
[1722239564546,1.74396966,69680.0,69679.0,0.001224]
[1722239564767,1.72143527,69680.0,69679.0,0.001224]
[1722239565209,1.73543527,69680.0,69679.0,0.001224]
[1722239565440,1.73698666,69680.0,69679.0,0.001224]
[1722239565845,1.73543246,69680.0,69679.0,0.001224]
[1722239566066,1.59908246,69680.0,69679.0,0.001224]
[1722239566673,1.73544246,69680.0,69679.0,0.001224]
[1722239567090,1.86827751,69680.0,69679.0,0.001224]
[1722239567293,2.09789851,69680.0,69679.0,0.001224]
[1722239567529,1.86827751,69680.0,69679.0,0.001224]
[1722239567731,1.73544246,69680.0,69679.0,0.001224]
[1722239568157,1.75908821,69680.0,69679.0,0.001224]
[1722239568343,1.75797681,69680.0,69679.0,0.001224]
[1722239568543,1.96506346,69680.0,69679.0,0.001224]
[1722239568704,1.73544246,69680.0,69679.0,0.001224]
[1722239569109,1.612554,69680.0,69679.0,0.001224]
[1722239569330,1.87862294,69680.0,69679.0,0.001224]
[1722239570774,2.10824394,69680.0,69679.0,0.001224]
[1722239571177,2.159228,69680.0,69679.0,0.001224]
[1722239571330,2.159228,69680.0,69658.0,0.000924]
[1722239571331,0.853915,69659.0,69658.0,0.000924]
[1722239571534,0.98190498,69659.0,69658.0,0.000924]
[1722239571776,0.98162129,69659.0,69658.0,0.000924]
[1722239572136,0.89862129,69659.0,69658.0,0.000924]
[1722239572776,0.89962129,69659.0,69658.0,0.001924]
[1722239573222,0.922158,69659.0,69658.0,0.001924]
[1722239573430,1.02841405,69659.0,69658.0,0.001924]
[1722239574786,1.02941405,69659.0,69658.0,0.001924]
[1722239574993,1.028677,69659.0,69658.0,0.001924]
[1722239575191,0.84990285,69659.0,69658.0,0.001924]
[1722239575391,0.89990285,69659.0,69658.0,0.001924]
[1722239575603,0.92043956,69659.0,69658.0,0.000924]
[1722239575844,0.89790285,69659.0,69658.0,0.000924]
[1722239576047,0.89890285,69659.0,69658.0,0.000924]
[1722239578128,0.8992081,69659.0,69658.0,0.000924]
[1722239578750,0.89949606,69659.0,69658.0,0.000924]
[1722239579318,0.92203221,69659.0,69658.0,0.083024]
[1722239579528,0.89949606,69659.0,69658.0,0.143824]
[1722239579704,0.84949606,69659.0,69658.0,0.143824]
[1722239579906,0.89949606,69659.0,69658.0,0.143824]
[1722239580291,0.84949606,69659.0,69658.0,0.143824]
[1722239580806,0.89949606,69659.0,69658.0,0.143824]
[1722239581020,0.89942577,69659.0,69658.0,0.143824]
[1722239581221,0.66973577,69659.0,69658.0,0.143824]
[1722239583620,0.79847171,69659.0,69658.0,0.143824]
[1722239583969,0.79847171,69659.0,69658.0,0.000924]
[1722239583970,0.66979484,69659.0,69658.0,0.000924]
[1722239584119,0.89948484,69659.0,69658.0,0.000924]
[1722239584584,0.87570567,69659.0,69658.0,0.000924]
[1722239584784,0.66979484,69659.0,69658.0,0.000924]
[1722239586220,0.69233191,69659.0,69658.0,0.000924]
[1722239587384,0.67110318,69659.0,69658.0,0.000924]
[1722239587604,0.74947909,69659.0,69658.0,0.000924]
[1722239587830,0.74947909,69659.0,69658.0,0.063924]
[1722239587981,0.74947909,69659.0,69658.0,0.140224]
[1722239587982,0.44141318,69659.0,69658.0,0.140224]
[1722239588411,0.21172318,69659.0,69658.0,0.140224]
[1722239588620,0.09687818,69659.0,69658.0,0.140224]
[1722239589608,0.21169887,69659.0,69658.0,0.140224]
[1722239590007,0.21169842,69659.0,69658.0,0.140224]
[1722239590365,0.57116649,69659.0,69658.0,0.140224]
[1722239590691,0.54224699,69659.0,69658.0,0.140224]
[1722239590889,0.77193699,69659.0,69658.0,0.140224]
[1722239591061,0.77193699,69659.0,69658.0,0.063924]
[1722239591271,0.77193699,69659.0,69658.0,0.000924]
[1722239591700,0.77216893,69659.0,69658.0,0.000924]
[1722239591919,0.74963255,69659.0,69658.0,0.000924]
[1722239592137,0.74963057,69659.0,69658.0,0.000924]
[1722239592956,0.62107842,69659.0,69658.0,0.000924]
[1722239593151,0.575225,69659.0,69658.0,0.000924]
[1722239593380,0.62132092,69659.0,69658.0,0.000924]
[1722239593792,0.67132092,69659.0,69658.0,0.000924]
[1722239594851,0.69385746,69659.0,69658.0,0.000924]
[1722239595027,0.46416746,69659.0,69658.0,0.000924]
[1722239596392,0.36807154,69659.0,69658.0,0.000924]
[1722239596599,0.46450932,69659.0,69658.0,0.000924]
[1722239596916,0.05,69656.0,69655.0,0.12230724]
[1722239597116,0.13228043,69656.0,69655.0,0.12230724]
[1722239597331,0.18228043,69656.0,69655.0,0.12230724]
[1722239597703,0.09643771,69656.0,69655.0,0.12230724]
[1722239598142,0.09799191,69656.0,69655.0,0.12230724]
[1722239598654,0.04643771,69656.0,69655.0,0.12330724]
[1722239598855,0.051,69656.0,69655.0,0.12330724]
[1722239599034,0.09743771,69656.0,69655.0,0.12330724]
[1722239599562,0.0525542,69656.0,69655.0,0.12330724]
[1722239599764,0.09757018,69656.0,69655.0,0.12330724]
[1722239600124,0.09912438,69656.0,69655.0,0.12330724]
[1722239600842,0.2075247,69656.0,69655.0,0.12330724]
[1722239601044,0.2059705,69656.0,69655.0,0.12330724]
[1722239601243,0.18343395,69656.0,69655.0,0.12330724]
[1722239602273,0.09757018,69656.0,69655.0,0.12330724]
[1722239602448,0.09896754,69656.0,69655.0,0.12330724]
[1722239602960,0.09780514,69656.0,69655.0,0.12330724]
[1722239603360,0.20526454,69656.0,69655.0,0.12330724]
[1722239603561,0.20526454,69656.0,69655.0,0.23815824]
[1722239603766,0.04780514,69656.0,69655.0,0.92726724]
[1722239603941,0.04780514,69656.0,69655.0,0.69756424]
[1722239604326,0.001,69656.0,69655.0,0.69756424]
[1722239604529,0.02353499,69656.0,69655.0,0.69756424]
[1722239604733,0.06987272,69656.0,69655.0,0.69756424]
[1722239605016,0.06987272,69656.0,69655.0,0.69656424]
[1722239605147,0.07087272,69656.0,69655.0,0.69656424]
[1722239605339,0.07187272,69656.0,69655.0,0.70056424]
[1722239605735,0.13638619,69656.0,69655.0,0.70056424]
[1722239606138,0.1247269,69656.0,69655.0,0.70056424]
[1722239606421,0.06020342,69656.0,69655.0,0.47086124]
[1722239606552,0.02453499,69656.0,69655.0,0.70056424]
[1722239606757,0.06034354,69656.0,69655.0,0.70056424]
[1722239606960,0.14637485,69656.0,69655.0,0.70056424]
[1722239607448,0.19637485,69656.0,69655.0,0.70056424]
[1722239607645,0.19629857,69656.0,69655.0,0.47086124]
[1722239608001,0.14629857,69656.0,69655.0,0.47086124]
[1722239608742,0.14625532,69656.0,69655.0,0.70056424]
[1722239609412,0.14625418,69656.0,69655.0,0.70056424]
[1722239609769,0.06024085,69656.0,69655.0,0.70056424]
[1722239610795,0.06024085,69656.0,69655.0,0.47086124]
[1722239611201,0.16775752,69656.0,69655.0,0.47086124]
[1722239611644,0.06024085,69656.0,69655.0,0.47086124]
[1722239611845,0.16775752,69656.0,69655.0,0.47086124]
[1722239612057,0.16775752,69656.0,69655.0,0.70056424]
[1722239612058,0.1462557,69656.0,69655.0,0.70056424]
[1722239612636,0.14621554,69656.0,69655.0,0.70056424]
[1722239612839,0.12471532,69656.0,69655.0,0.75056424]
[1722239613041,0.0035542,69656.0,69655.0,0.98026724]
[1722239613281,0.0035542,69656.0,69655.0,1.11356724]
[1722239613535,0.0015542,69660.0,69659.0,0.967515]
[1722239613716,0.0015542,69664.0,69663.0,0.446515]
[1722239613863,0.0015542,69668.0,69667.0,0.574157]
[1722239614064,0.0015542,69668.0,69667.0,1.03072]
[1722239614285,0.0645271,69674.0,69670.0,0.488081]
[1722239614286,0.04457492,69671.0,69670.0,0.488081]
[1722239614489,0.0015542,69671.0,69670.0,1.030689]
[1722239615089,0.04302072,69673.0,69671.0,0.717725]
[1722239615090,0.0015542,69672.0,69671.0,0.717725]
[1722239615805,0.00084,69699.0,69677.0,0.113815]
[1722239615968,0.00100045,69679.0,69677.0,0.113815]
[1722239616170,0.02942572,69678.0,69677.0,0.113815]
[1722239616368,0.05,69677.0,69676.0,0.114817]
[1722239616644,0.0294253,69677.0,69676.0,0.114817]
[1722239616762,0.0794253,69677.0,69676.0,0.113817]
[1722239616960,0.0294253,69677.0,69676.0,0.113817]
[1722239617166,0.02944193,69678.0,69677.0,0.119815]
[1722239617368,0.02944195,69678.0,69677.0,0.119815]
[1722239617568,0.02944195,69679.0,69677.0,0.114815]
[1722239617775,0.02944195,69678.0,69677.0,0.114815]
[1722239618176,0.05197122,69678.0,69677.0,0.114815]
[1722239618399,0.04293942,69678.0,69677.0,0.113815]
[1722239618808,0.114805,69683.0,69677.0,0.113815]
[1722239619009,0.0429393,69678.0,69677.0,0.113815]
[1722239619451,0.0429393,69678.0,69676.0,0.008]
[1722239619452,0.09386605,69678.0,69676.0,0.008]
[1722239619631,0.02945709,69677.0,69676.0,0.008]
[1722239619826,0.09542025,69677.0,69676.0,0.008]
[1722239620028,0.02945709,69677.0,69676.0,0.114817]
[1722239620435,0.02945709,69677.0,69675.0,0.114818]
[1722239620916,0.05,69675.0,69674.0,0.22964]
[1722239621117,0.05,69669.0,69668.0,0.11483]
[1722239621325,0.05,69668.0,69667.0,0.11483]
[1722239621523,0.0666,69671.0,69668.0,0.11483]
[1722239621764,0.0666,69671.0,69669.0,0.114828]
[1722239622167,0.08913106,69671.0,69669.0,0.114828]
[1722239622342,0.08913106,69671.0,69667.0,0.229663]
[1722239622542,0.08913106,69671.0,69667.0,0.014]
[1722239622543,0.05,69668.0,69667.0,0.014]
[1722239622747,0.15618979,69668.0,69667.0,0.014]
[1722239623166,0.05,69667.0,69666.0,0.114833]
[1722239623529,0.05,69666.0,69665.0,0.114835]
[1722239624689,0.051,69666.0,69665.0,0.128835]
[1722239624877,0.001,69666.0,69665.0,0.128835]
[1722239625279,0.001,69666.0,69665.0,0.014]
[1722239625563,0.051,69666.0,69665.0,0.014]
[1722239625758,0.08089673,69666.0,69665.0,0.014]
[1722239625936,0.08089761,69666.0,69665.0,0.014]
[1722239626123,0.19573061,69666.0,69665.0,0.014]
[1722239626461,0.42539761,69666.0,69665.0,0.014]
[1722239626616,0.79816461,69666.0,69665.0,0.014]
[1722239627028,1.02783161,69666.0,69665.0,0.014]
[1722239627607,0.79816461,69666.0,69665.0,0.014]
[1722239628021,0.79816461,69666.0,69665.0,0.02]
[1722239628022,0.74816461,69666.0,69665.0,0.02]
[1722239628494,0.768267,69666.0,69665.0,0.02]
[1722239628681,0.74784798,69666.0,69665.0,0.014]
[1722239628883,0.79784798,69666.0,69665.0,0.014]
[1722239629287,0.74784798,69666.0,69665.0,0.014]
[1722239629687,0.79784798,69666.0,69665.0,0.014]
[1722239629890,0.74784798,69666.0,69665.0,0.014]
[1722239630491,0.79784798,69666.0,69665.0,0.014]
[1722239630857,0.74784798,69666.0,69665.0,0.014]
[1722239631057,0.79784798,69666.0,69665.0,0.014]
[1722239631284,0.74784798,69666.0,69665.0,0.014]
[1722239631484,0.74984798,69666.0,69665.0,0.014]
[1722239631685,0.7497882,69666.0,69665.0,0.014]
[1722239631887,0.7977882,69666.0,69665.0,0.014]
[1722239632226,0.7977882,69666.0,69657.0,0.0090414]
[1722239632227,0.4042882,69666.0,69657.0,0.0090414]
[1722239632377,0.06440962,69659.0,69658.0,0.114845]
[1722239632580,0.09393082,69659.0,69658.0,0.114845]
[1722239632930,0.09393082,69659.0,69658.0,0.640331]
[1722239633180,0.0295212,69659.0,69658.0,0.410638]
[1722239634034,0.07935302,69660.0,69659.0,0.344535]
[1722239634170,0.07935291,69660.0,69659.0,0.344535]
[1722239634803,0.07935186,69660.0,69659.0,0.343535]
[1722239635001,0.1437742,69660.0,69659.0,0.343535]
[1722239635425,0.14362058,69660.0,69659.0,0.343535]
[1722239635635,0.14362058,69660.0,69659.0,0.354535]
[1722239635636,0.14462058,69660.0,69659.0,0.354535]